[Event "FIDE World Rapid Chess Championship 2021"]
[White "Gukesh, D"]
[Black "Pichot, Alan"]
[WhiteFideId "46616543"]
[BlackFideId "110973"]
[WhiteElo "2050"]
[BlackElo "2523"]
[Result "1-0"]
[Round "05"]
[TimeControl "900+10"]
[Date "2021.12.26"]
[WhiteClock "0:01:06"]
[BlackClock "0:00:24"]

1. d4 {[%clk 0:01:06]}  d5 {[%clk 0:00:24]} 2. c4 {[%clk 0:01:06]}  dxc4 {[%clk 0:00:24]} 3. e3 {[%clk 0:01:06]}  Nf6 {[%clk 0:00:24]} 4. Bxc4 {[%clk 0:01:06]}  e6 {[%clk 0:00:24]} 5. Nf3 {[%clk 0:01:06]}  a6 {[%clk 0:00:24]} 6. O-O {[%clk 0:01:06]}  c5 {[%clk 0:00:24]} 7. Re1 {[%clk 0:01:06]}  b5 {[%clk 0:00:24]} 8. Bf1 {[%clk 0:01:06]}  Bb7 {[%clk 0:00:24]} 9. a4 {[%clk 0:01:06]}  b4 {[%clk 0:00:24]} 10. Nbd2 {[%clk 0:01:06]}  Be7 {[%clk 0:00:24]} 11. dxc5 {[%clk 0:01:06]}  Nbd7 {[%clk 0:00:24]} 12. Nb3 {[%clk 0:01:06]}  O-O {[%clk 0:00:24]} 13. c6 {[%clk 0:01:06]}  Bxc6 {[%clk 0:00:24]} 14. Nfd4 {[%clk 0:01:06]}  Bb7 {[%clk 0:00:24]} 15. f3 {[%clk 0:01:06]}  Nc5 {[%clk 0:00:24]} 16. e4 {[%clk 0:01:06]}  Nxb3 {[%clk 0:00:24]} 17. Nxb3 {[%clk 0:01:06]}  Qb8 {[%clk 0:00:24]} 18. Be3 {[%clk 0:01:06]}  Rd8 {[%clk 0:00:24]} 19. Qe2 {[%clk 0:01:06]}  Qe5 {[%clk 0:00:24]} 20. Qf2 {[%clk 0:01:06]}  Rac8 {[%clk 0:00:24]} 21. Bb6 {[%clk 0:01:06]}  Re8 {[%clk 0:00:24]} 22. Rac1 {[%clk 0:01:06]}  h5 {[%clk 0:00:24]} 23. Na5 {[%clk 0:01:06]}  Ba8 {[%clk 0:00:24]} 24. Rxc8 {[%clk 0:01:06]}  Rxc8 {[%clk 0:00:24]} 25. Bxa6 {[%clk 0:01:06]}  Bc5 {[%clk 0:00:24]} 26. Bxc5 {[%clk 0:01:06]}  Rxc5 {[%clk 0:00:24]} 27. Nb3 {[%clk 0:01:06]}  Rc7 {[%clk 0:00:24]} 28. Qd4 {[%clk 0:01:06]}  Qxd4+ {[%clk 0:00:24]} 29. Nxd4 {[%clk 0:01:06]}  e5 {[%clk 0:00:24]} 30. Nb3 {[%clk 0:01:06]}  Rc2 {[%clk 0:00:24]} 31. Re2 {[%clk 0:01:06]}  Rc7 {[%clk 0:00:24]} 32. Bb5 {[%clk 0:01:06]}  h4 {[%clk 0:00:24]} 33. Rd2 {[%clk 0:01:06]}  Kh7 {[%clk 0:00:24]} 34. Na5 {[%clk 0:01:06]}  Rc1+ {[%clk 0:00:24]} 35. Bf1 {[%clk 0:01:06]}  Ra1 {[%clk 0:00:24]} 36. b3 {[%clk 0:01:06]}  Kg6 {[%clk 0:00:24]} 37. Nc4 {[%clk 0:01:06]}  Kg5 {[%clk 0:00:24]} 38. Nxe5 {[%clk 0:01:06]}  Kf4 {[%clk 0:00:24]} 39. Nd3+ {[%clk 0:01:06]}  Ke3 {[%clk 0:00:24]} 40. Re2+ {[%clk 0:01:06]}  Kd4 {[%clk 0:00:24]} 41. Nxb4 {[%clk 0:01:06]}  Rb1 {[%clk 0:00:24]} 42. Nc2+ {[%clk 0:01:06]}  Kc3 {[%clk 0:00:24]} 43. Na3 {[%clk 0:01:06]}  Ra1 {[%clk 0:00:24]} 44. Re3+ {[%clk 0:01:06]}  Kd2 {[%clk 0:00:24]} 45. Nc4+ {[%clk 0:01:06]}  Kc2 {[%clk 0:00:24]} 46. Kf2 {[%clk 0:01:06]}  Bxe4 {[%clk 0:00:24]} 47. Re2+ {[%clk 0:01:06]}  Kc3 {[%clk 0:00:24]} 48. fxe4 {[%clk 0:01:06]}  Kxb3 {[%clk 0:00:24]} 49. Ne5 {[%clk 0:01:06]}  Rxa4 {[%clk 0:00:24]} 50. Kf3 {[%clk 0:01:06]}  Ra1 {[%clk 0:00:24]} 51. Re3+ {[%clk 0:01:06]}  Kb4 {[%clk 0:00:24]} 52. Be2 {[%clk 0:01:06]}  Kc5 {[%clk 0:00:24]} 53. Nxf7 {[%clk 0:01:06]} 1-0


[Site "http://www.Chess.com"]

[Event "FIDE World Rapid Chess Championship 2021"]
[White "Gumularz, Szymon"]
[Black "Oparin, Grigoriy"]
[WhiteFideId "1188062"]
[BlackFideId "24125890"]
[WhiteElo "2452"]
[BlackElo "2725"]
[Result "1/2-1/2"]
[Round "05"]
[TimeControl "900+10"]
[Date "2021.12.26"]
[WhiteClock "0:04:48"]
[BlackClock "0:03:10"]

1. e4 {[%clk 0:04:48]}  e5 {[%clk 0:03:10]} 2. Nf3 {[%clk 0:04:48]}  Nc6 {[%clk 0:03:10]} 3. d4 {[%clk 0:04:48]}  exd4 {[%clk 0:03:10]} 4. Nxd4 {[%clk 0:04:48]}  Bc5 {[%clk 0:03:10]} 5. Nb3 {[%clk 0:04:48]}  Bb6 {[%clk 0:03:10]} 6. Nc3 {[%clk 0:04:48]}  d6 {[%clk 0:03:10]} 7. Qe2 {[%clk 0:04:48]}  a5 {[%clk 0:03:10]} 8. Nd5 {[%clk 0:04:48]}  a4 {[%clk 0:03:10]} 9. Nxb6 {[%clk 0:04:48]}  cxb6 {[%clk 0:03:10]} 10. Nd2 {[%clk 0:04:48]}  Nf6 {[%clk 0:03:10]} 11. Qd3 {[%clk 0:04:48]}  O-O {[%clk 0:03:10]} 12. Be2 {[%clk 0:04:48]}  d5 {[%clk 0:03:10]} 13. O-O {[%clk 0:04:48]}  Re8 {[%clk 0:03:10]} 14. exd5 {[%clk 0:04:48]}  Nxd5 {[%clk 0:03:10]} 15. Nf3 {[%clk 0:04:48]}  Ncb4 {[%clk 0:03:10]} 16. Qd1 {[%clk 0:04:48]}  Bf5 {[%clk 0:03:10]} 17. Nd4 {[%clk 0:04:48]}  Bg6 {[%clk 0:03:10]} 18. c3 {[%clk 0:04:48]}  Nc6 {[%clk 0:03:10]} 19. Bb5 {[%clk 0:04:48]}  Nxd4 {[%clk 0:03:10]} 20. cxd4 {[%clk 0:04:48]}  Re4 {[%clk 0:03:10]} 21. Bxa4 {[%clk 0:04:48]}  Nf6 {[%clk 0:03:10]} 22. Bb3 {[%clk 0:04:48]}  Rxd4 {[%clk 0:03:10]} 23. Qf3 {[%clk 0:04:48]}  Rd3 {[%clk 0:03:10]} 24. Be3 {[%clk 0:04:48]}  Nd5 {[%clk 0:03:10]} 25. Bxd5 {[%clk 0:04:48]} 1/2-1/2


[Site "http://www.Chess.com"]

[Event "FIDE World Rapid Chess Championship 2021"]
[White "Puranik, Abhimanyu"]
[Black "Smirin, Ilia"]
[WhiteFideId "5061245"]
[BlackFideId "2801990"]
[WhiteElo "2472"]
[BlackElo "2663"]
[Result "1-0"]
[Round "05"]
[TimeControl "900+10"]
[Date "2021.12.26"]
[WhiteClock "0:02:41"]
[BlackClock "0:12:22"]

1. e4 {[%clk 0:02:41]}  c5 {[%clk 0:12:22]} 2. Nc3 {[%clk 0:02:41]}  e6 {[%clk 0:12:22]} 3. Nf3 {[%clk 0:02:41]}  a6 {[%clk 0:12:22]} 4. d4 {[%clk 0:02:41]}  cxd4 {[%clk 0:12:22]} 5. Nxd4 {[%clk 0:02:41]}  b5 {[%clk 0:12:22]} 6. Bd3 {[%clk 0:02:41]}  Qb6 {[%clk 0:12:22]} 7. Nb3 {[%clk 0:02:41]}  Qc7 {[%clk 0:12:22]} 8. O-O {[%clk 0:02:41]}  Nf6 {[%clk 0:12:22]} 9. Qe2 {[%clk 0:02:41]}  Nc6 {[%clk 0:12:22]} 10. f4 {[%clk 0:02:41]}  d6 {[%clk 0:12:22]} 11. Bd2 {[%clk 0:02:41]}  b4 {[%clk 0:12:22]} 12. Na4 {[%clk 0:02:41]}  Be7 {[%clk 0:12:22]} 13. Be3 {[%clk 0:02:41]}  Bb7 {[%clk 0:12:22]} 14. Rac1 {[%clk 0:02:41]}  O-O {[%clk 0:12:22]} 15. c4 {[%clk 0:02:41]}  Nd7 {[%clk 0:12:22]} 16. c5 {[%clk 0:02:41]}  dxc5 {[%clk 0:12:22]} 17. Nbxc5 {[%clk 0:02:41]}  Nxc5 {[%clk 0:12:22]} 18. Nxc5 {[%clk 0:02:41]}  Rfd8 {[%clk 0:12:22]} 19. e5 {[%clk 0:02:41]}  Bxc5 {[%clk 0:12:22]} 20. Bxc5 {[%clk 0:02:41]}  Qa5 {[%clk 0:12:22]} 21. Be4 {[%clk 0:02:41]}  Rd7 {[%clk 0:12:22]} 22. f5 {[%clk 0:02:41]}  exf5 {[%clk 0:12:22]} 23. Bxf5 {[%clk 0:02:41]}  Qd8 {[%clk 0:12:22]} 24. e6 {[%clk 0:02:41]}  Nd4 {[%clk 0:12:22]} 25. Bxd4 {[%clk 0:02:41]}  Rxd4 {[%clk 0:12:22]} 26. exf7+ {[%clk 0:02:41]}  Kf8 {[%clk 0:12:22]} 27. Rce1 {[%clk 0:02:41]}  Bc6 {[%clk 0:12:22]} 28. Bg6 {[%clk 0:02:41]} 1-0


[Site "http://www.Chess.com"]

[Event "FIDE World Rapid Chess Championship 2021"]
[White "Riazantsev, Alexander"]
[Black "Sychev, Klementy"]
[WhiteFideId "4125029"]
[BlackFideId "4114060"]
[WhiteElo "2632"]
[BlackElo "2461"]
[Result "1/2-1/2"]
[Round "05"]
[TimeControl "900+10"]
[Date "2021.12.26"]
[WhiteClock "0:00:00"]
[BlackClock "0:01:29"]

1. d4 {[%clk 0:00:00]}  Nf6 {[%clk 0:01:29]} 2. c4 {[%clk 0:00:00]}  e6 {[%clk 0:01:29]} 3. Nf3 {[%clk 0:00:00]}  d5 {[%clk 0:01:29]} 4. Bg5 {[%clk 0:00:00]}  dxc4 {[%clk 0:01:29]} 5. e4 {[%clk 0:00:00]}  c5 {[%clk 0:01:29]} 6. Nc3 {[%clk 0:00:00]}  cxd4 {[%clk 0:01:29]} 7. Qxd4 {[%clk 0:00:00]}  Qxd4 {[%clk 0:01:29]} 8. Nxd4 {[%clk 0:00:00]}  Bb4 {[%clk 0:01:29]} 9. f3 {[%clk 0:00:00]}  Bd7 {[%clk 0:01:29]} 10. Bxc4 {[%clk 0:00:00]}  Nc6 {[%clk 0:01:29]} 11. Nb3 {[%clk 0:00:00]}  Rc8 {[%clk 0:01:29]} 12. Be2 {[%clk 0:00:00]}  Na5 {[%clk 0:01:29]} 13. O-O {[%clk 0:00:00]}  Nc4 {[%clk 0:01:29]} 14. a3 {[%clk 0:00:00]}  Bxc3 {[%clk 0:01:29]} 15. bxc3 {[%clk 0:00:00]}  e5 {[%clk 0:01:29]} 16. Nd2 {[%clk 0:00:00]}  Be6 {[%clk 0:01:29]} 17. Rfb1 {[%clk 0:00:00]}  b6 {[%clk 0:01:29]} 18. Rb4 {[%clk 0:00:00]}  Na5 {[%clk 0:01:29]} 19. Rc1 {[%clk 0:00:00]}  Nd7 {[%clk 0:01:29]} 20. g3 {[%clk 0:00:00]}  f6 {[%clk 0:01:29]} 21. Be3 {[%clk 0:00:00]}  Ke7 {[%clk 0:01:29]} 22. c4 {[%clk 0:00:00]}  Rc7 {[%clk 0:01:29]} 23. Rb2 {[%clk 0:00:00]}  Rhc8 {[%clk 0:01:29]} 24. Rbc2 {[%clk 0:00:00]}  Nc5 {[%clk 0:01:29]} 25. Rc3 {[%clk 0:00:00]}  Rd7 {[%clk 0:01:29]} 26. Rb1 {[%clk 0:00:00]}  Rdc7 {[%clk 0:01:29]} 27. Rbc1 {[%clk 0:00:00]}  Na4 {[%clk 0:01:29]} 28. R3c2 {[%clk 0:00:00]}  Nc5 {[%clk 0:01:29]} 29. Rc3 {[%clk 0:00:00]} 1/2-1/2


[Site "http://www.Chess.com"]

[Event "FIDE World Rapid Chess Championship 2021"]
[White "Heimann, Andreas"]
[Black "Dragnev, Valentin"]
[WhiteFideId "24624632"]
[BlackFideId "1634852"]
[WhiteElo "2616"]
[BlackElo "2409"]
[Result "1/2-1/2"]
[Round "05"]
[TimeControl "900+10"]
[Date "2021.12.26"]
[WhiteClock "0:07:21"]
[BlackClock "0:03:38"]

1. e4 {[%clk 0:07:21]}  c5 {[%clk 0:03:38]} 2. Nf3 {[%clk 0:07:21]}  d6 {[%clk 0:03:38]} 3. d4 {[%clk 0:07:21]}  cxd4 {[%clk 0:03:38]} 4. Nxd4 {[%clk 0:07:21]}  Nf6 {[%clk 0:03:38]} 5. Nc3 {[%clk 0:07:21]}  a6 {[%clk 0:03:38]} 6. f4 {[%clk 0:07:21]}  e5 {[%clk 0:03:38]} 7. Nb3 {[%clk 0:07:21]}  Nc6 {[%clk 0:03:38]} 8. f5 {[%clk 0:07:21]}  h6 {[%clk 0:03:38]} 9. Bd3 {[%clk 0:07:21]}  Be7 {[%clk 0:03:38]} 10. O-O {[%clk 0:07:21]}  b5 {[%clk 0:03:38]} 11. a4 {[%clk 0:07:21]}  b4 {[%clk 0:03:38]} 12. Nd5 {[%clk 0:07:21]}  Nxd5 {[%clk 0:03:38]} 13. exd5 {[%clk 0:07:21]}  Na5 {[%clk 0:03:38]} 14. Qg4 {[%clk 0:07:21]}  Bf6 {[%clk 0:03:38]} 15. Qxb4 {[%clk 0:07:21]}  Nxb3 {[%clk 0:03:38]} 16. Qxb3 {[%clk 0:07:21]}  O-O {[%clk 0:03:38]} 17. Be3 {[%clk 0:07:21]}  e4 {[%clk 0:03:38]} 18. Be2 {[%clk 0:07:21]}  Bd7 {[%clk 0:03:38]} 19. c3 {[%clk 0:07:21]}  Re8 {[%clk 0:03:38]} 20. Qc2 {[%clk 0:07:21]}  Qa5 {[%clk 0:03:38]} 21. Qd2 {[%clk 0:07:21]}  Re5 {[%clk 0:03:38]} 22. Rfd1 {[%clk 0:07:21]}  Bxf5 {[%clk 0:03:38]} 23. b4 {[%clk 0:07:21]}  Qd8 {[%clk 0:03:38]} 24. c4 {[%clk 0:07:21]}  a5 {[%clk 0:03:38]} 25. b5 {[%clk 0:07:21]}  Bg5 {[%clk 0:03:38]} 26. Rab1 {[%clk 0:07:21]}  Bd7 {[%clk 0:03:38]} 27. b6 {[%clk 0:07:21]}  Bxa4 {[%clk 0:03:38]} 28. Rf1 {[%clk 0:07:21]}  Bd7 {[%clk 0:03:38]} 29. Qc3 {[%clk 0:07:21]}  Bxe3+ {[%clk 0:03:38]} 30. Qxe3 {[%clk 0:07:21]}  a4 {[%clk 0:03:38]} 31. Qd4 {[%clk 0:07:21]}  Re7 {[%clk 0:03:38]} 32. c5 {[%clk 0:07:21]}  dxc5 {[%clk 0:03:38]} 33. Qxc5 {[%clk 0:07:21]}  Be8 {[%clk 0:03:38]} 34. Rb4 {[%clk 0:07:21]}  Rb8 {[%clk 0:03:38]} 35. Rfb1 {[%clk 0:07:21]}  a3 {[%clk 0:03:38]} 36. Bc4 {[%clk 0:07:21]}  e3 {[%clk 0:03:38]} 37. d6 {[%clk 0:07:21]}  Rd7 {[%clk 0:03:38]} 38. Rd1 {[%clk 0:07:21]}  Rdb7 {[%clk 0:03:38]} 39. Qxe3 {[%clk 0:07:21]}  Rxb6 {[%clk 0:03:38]} 40. Rxb6 {[%clk 0:07:21]}  Qxb6 {[%clk 0:03:38]} 41. Qxb6 {[%clk 0:07:21]}  Rxb6 {[%clk 0:03:38]} 42. d7 {[%clk 0:07:21]}  Bxd7 {[%clk 0:03:38]} 43. Rxd7 {[%clk 0:07:21]}  Rb1+ {[%clk 0:03:38]} 44. Kf2 {[%clk 0:07:21]}  a2 {[%clk 0:03:38]} 45. Bxf7+ {[%clk 0:07:21]}  Kh7 {[%clk 0:03:38]} 46. Bxa2 {[%clk 0:07:21]}  Rb2+ {[%clk 0:03:38]} 47. Ke3 {[%clk 0:07:21]}  Rxa2 {[%clk 0:03:38]} 48. Rd2 {[%clk 0:07:21]} 1/2-1/2


[Site "http://www.Chess.com"]

[Event "FIDE World Rapid Chess Championship 2021"]
[White "Heberla, Bartlomiej"]
[Black "Timofeev, Artyom"]
[WhiteFideId "1115120"]
[BlackFideId "4140419"]
[WhiteElo "2437"]
[BlackElo "2591"]
[Result "0-1"]
[Round "05"]
[TimeControl "900+10"]
[Date "2021.12.26"]
[WhiteClock "0:00:22"]
[BlackClock "0:00:33"]

1. d4 {[%clk 0:00:22]}  d5 {[%clk 0:00:33]} 2. c4 {[%clk 0:00:22]}  dxc4 {[%clk 0:00:33]} 3. e3 {[%clk 0:00:22]}  Nf6 {[%clk 0:00:33]} 4. Bxc4 {[%clk 0:00:22]}  e6 {[%clk 0:00:33]} 5. Nf3 {[%clk 0:00:22]}  c5 {[%clk 0:00:33]} 6. O-O {[%clk 0:00:22]}  a6 {[%clk 0:00:33]} 7. a4 {[%clk 0:00:22]}  Nc6 {[%clk 0:00:33]} 8. Qe2 {[%clk 0:00:22]}  Be7 {[%clk 0:00:33]} 9. Rd1 {[%clk 0:00:22]}  Qc7 {[%clk 0:00:33]} 10. Nc3 {[%clk 0:00:22]}  O-O {[%clk 0:00:33]} 11. Bd3 {[%clk 0:00:22]}  Nb4 {[%clk 0:00:33]} 12. Bb1 {[%clk 0:00:22]}  cxd4 {[%clk 0:00:33]} 13. exd4 {[%clk 0:00:22]}  b6 {[%clk 0:00:33]} 14. Bg5 {[%clk 0:00:22]}  Bb7 {[%clk 0:00:33]} 15. Ne5 {[%clk 0:00:22]}  Rad8 {[%clk 0:00:33]} 16. Ra3 {[%clk 0:00:22]}  Ba8 {[%clk 0:00:33]} 17. Rb3 {[%clk 0:00:22]}  Qb7 {[%clk 0:00:33]} 18. Nf3 {[%clk 0:00:22]}  a5 {[%clk 0:00:33]} 19. Bxf6 {[%clk 0:00:22]}  Bxf6 {[%clk 0:00:33]} 20. Be4 {[%clk 0:00:22]}  Qb8 {[%clk 0:00:33]} 21. Bxa8 {[%clk 0:00:22]}  Qxa8 {[%clk 0:00:33]} 22. Ne4 {[%clk 0:00:22]}  Be7 {[%clk 0:00:33]} 23. Rc3 {[%clk 0:00:22]}  Qd5 {[%clk 0:00:33]} 24. Ne5 {[%clk 0:00:22]}  f5 {[%clk 0:00:33]} 25. Ng3 {[%clk 0:00:22]}  Bf6 {[%clk 0:00:33]} 26. Nf3 {[%clk 0:00:22]}  g6 {[%clk 0:00:33]} 27. Nf1 {[%clk 0:00:22]}  Qd7 {[%clk 0:00:33]} 28. Ne3 {[%clk 0:00:22]}  Qxa4 {[%clk 0:00:33]} 29. Nc4 {[%clk 0:00:22]}  Nd5 {[%clk 0:00:33]} 30. Rcc1 {[%clk 0:00:22]}  Rfe8 {[%clk 0:00:33]} 31. Nce5 {[%clk 0:00:22]}  Rc8 {[%clk 0:00:33]} 32. Re1 {[%clk 0:00:22]}  Rxc1 {[%clk 0:00:33]} 33. Rxc1 {[%clk 0:00:22]}  Nf4 {[%clk 0:00:33]} 34. Qd2 {[%clk 0:00:22]}  Bxe5 {[%clk 0:00:33]} 35. dxe5 {[%clk 0:00:22]}  Qb4 {[%clk 0:00:33]} 36. Qc2 {[%clk 0:00:22]}  Qe4 {[%clk 0:00:33]} 37. Kf1 {[%clk 0:00:22]}  Qxc2 {[%clk 0:00:33]} 38. Rxc2 {[%clk 0:00:22]}  Rd8 {[%clk 0:00:33]} 39. Rc1 {[%clk 0:00:22]}  a4 {[%clk 0:00:33]} 40. g3 {[%clk 0:00:22]}  Nd3 {[%clk 0:00:33]} 41. Rc7 {[%clk 0:00:22]}  h6 {[%clk 0:00:33]} 42. Rb7 {[%clk 0:00:22]}  Nxb2 {[%clk 0:00:33]} 43. Rxb6 {[%clk 0:00:22]}  a3 {[%clk 0:00:33]} 44. Ra6 {[%clk 0:00:22]}  Nc4 {[%clk 0:00:33]} 45. Ra4 {[%clk 0:00:22]}  g5 {[%clk 0:00:33]} 46. Ke2 {[%clk 0:00:22]}  g4 {[%clk 0:00:33]} 47. Nh4 {[%clk 0:00:22]}  Rd2+ {[%clk 0:00:33]} 48. Ke1 {[%clk 0:00:22]}  a2 {[%clk 0:00:33]} 0-1


[Site "http://www.Chess.com"]

[Event "FIDE World Rapid Chess Championship 2021"]
[White "Krasenkow, Michal"]
[Black "Shoker, Samy"]
[WhiteFideId "1113100"]
[BlackFideId "627143"]
[WhiteElo "2430"]
[BlackElo "2550"]
[Result "0-1"]
[Round "05"]
[TimeControl "900+10"]
[Date "2021.12.26"]
[WhiteClock "0:00:55"]
[BlackClock "0:01:20"]

1. d4 {[%clk 0:00:55]}  Nf6 {[%clk 0:01:20]} 2. c4 {[%clk 0:00:55]}  d6 {[%clk 0:01:20]} 3. Nc3 {[%clk 0:00:55]}  e5 {[%clk 0:01:20]} 4. dxe5 {[%clk 0:00:55]}  dxe5 {[%clk 0:01:20]} 5. Qxd8+ {[%clk 0:00:55]}  Kxd8 {[%clk 0:01:20]} 6. Nf3 {[%clk 0:00:55]}  Nfd7 {[%clk 0:01:20]} 7. Ng5 {[%clk 0:00:55]}  Ke8 {[%clk 0:01:20]} 8. f4 {[%clk 0:00:55]}  c6 {[%clk 0:01:20]} 9. g3 {[%clk 0:00:55]}  Na6 {[%clk 0:01:20]} 10. Be3 {[%clk 0:00:55]}  h6 {[%clk 0:01:20]} 11. Nf3 {[%clk 0:00:55]}  exf4 {[%clk 0:01:20]} 12. gxf4 {[%clk 0:00:55]}  Bb4 {[%clk 0:01:20]} 13. Rc1 {[%clk 0:00:55]}  Nf6 {[%clk 0:01:20]} 14. a3 {[%clk 0:00:55]}  Bc5 {[%clk 0:01:20]} 15. Bxc5 {[%clk 0:00:55]}  Nxc5 {[%clk 0:01:20]} 16. b4 {[%clk 0:00:55]}  Ne6 {[%clk 0:01:20]} 17. e3 {[%clk 0:00:55]}  a5 {[%clk 0:01:20]} 18. Bd3 {[%clk 0:00:55]}  Ke7 {[%clk 0:01:20]} 19. Ke2 {[%clk 0:00:55]}  axb4 {[%clk 0:01:20]} 20. axb4 {[%clk 0:00:55]}  Ra3 {[%clk 0:01:20]} 21. Kd2 {[%clk 0:00:55]}  Rd8 {[%clk 0:01:20]} 22. Kc2 {[%clk 0:00:55]}  g5 {[%clk 0:01:20]} 23. f5 {[%clk 0:00:55]}  Ng7 {[%clk 0:01:20]} 24. Nd4 {[%clk 0:00:55]}  Ng4 {[%clk 0:01:20]} 25. Kb2 {[%clk 0:00:55]}  Ra8 {[%clk 0:01:20]} 26. Rhe1 {[%clk 0:00:55]}  Ne5 {[%clk 0:01:20]} 27. f6+ {[%clk 0:00:55]}  Kxf6 {[%clk 0:01:20]} 28. Ne4+ {[%clk 0:00:55]}  Ke7 {[%clk 0:01:20]} 29. Bb1 {[%clk 0:00:55]}  Be6 {[%clk 0:01:20]} 30. Nxe6 {[%clk 0:00:55]}  fxe6 {[%clk 0:01:20]} 31. c5 {[%clk 0:00:55]}  Nf5 {[%clk 0:01:20]} 32. Rc3 {[%clk 0:00:55]}  Ra4 {[%clk 0:01:20]} 33. Rb3 {[%clk 0:00:55]}  Nc4+ {[%clk 0:01:20]} 34. Kc1 {[%clk 0:00:55]}  g4 {[%clk 0:01:20]} 35. b5 {[%clk 0:00:55]}  Ra3 {[%clk 0:01:20]} 36. Rxa3 {[%clk 0:00:55]}  Nxa3 {[%clk 0:01:20]} 37. bxc6 {[%clk 0:00:55]}  bxc6 {[%clk 0:01:20]} 38. Ba2 {[%clk 0:00:55]}  Nb5 {[%clk 0:01:20]} 39. Kc2 {[%clk 0:00:55]}  Nc7 {[%clk 0:01:20]} 40. Ng3 {[%clk 0:00:55]}  Na6 {[%clk 0:01:20]} 41. Nxf5+ {[%clk 0:00:55]}  exf5 {[%clk 0:01:20]} 42. Rf1 {[%clk 0:00:55]}  Rf8 {[%clk 0:01:20]} 43. Kc3 {[%clk 0:00:55]}  Nxc5 {[%clk 0:01:20]} 44. Kd4 {[%clk 0:00:55]}  Kd6 {[%clk 0:01:20]} 45. Rc1 {[%clk 0:00:55]}  Ne4 {[%clk 0:01:20]} 46. Bb1 {[%clk 0:00:55]}  Ng5 {[%clk 0:01:20]} 47. Kc4 {[%clk 0:00:55]}  Ne6 {[%clk 0:01:20]} 48. Rd1+ {[%clk 0:00:55]}  Ke5 {[%clk 0:01:20]} 49. Rd7 {[%clk 0:00:55]}  f4 {[%clk 0:01:20]} 50. exf4+ {[%clk 0:00:55]}  Rxf4+ {[%clk 0:01:20]} 51. Kc3 {[%clk 0:00:55]}  Rf2 {[%clk 0:01:20]} 52. Bd3 {[%clk 0:00:55]}  Rxh2 {[%clk 0:01:20]} 53. Bc4 {[%clk 0:00:55]}  Ng5 {[%clk 0:01:20]} 54. Rd1 {[%clk 0:00:55]}  g3 {[%clk 0:01:20]} 55. Re1+ {[%clk 0:00:55]}  Kf4 {[%clk 0:01:20]} 56. Rf1+ {[%clk 0:00:55]}  Nf3 {[%clk 0:01:20]} 0-1


[Site "http://www.Chess.com"]

[Event "FIDE World Rapid Chess Championship 2021"]
[White "Piorun, Kacper"]
[Black "Holm, Kristian Stuvik"]
[WhiteFideId "1130420"]
[BlackFideId "1508083"]
[WhiteElo "2547"]
[BlackElo "2409"]
[Result "1/2-1/2"]
[Round "05"]
[TimeControl "900+10"]
[Date "2021.12.26"]
[WhiteClock "0:00:17"]
[BlackClock "0:04:45"]

1. d4 {[%clk 0:00:17]}  Nf6 {[%clk 0:04:45]} 2. Nf3 {[%clk 0:00:17]}  d5 {[%clk 0:04:45]} 3. c4 {[%clk 0:00:17]}  e6 {[%clk 0:04:45]} 4. g3 {[%clk 0:00:17]}  dxc4 {[%clk 0:04:45]} 5. Bg2 {[%clk 0:00:17]}  c5 {[%clk 0:04:45]} 6. O-O {[%clk 0:00:17]}  Nc6 {[%clk 0:04:45]} 7. Qa4 {[%clk 0:00:17]}  Bd7 {[%clk 0:04:45]} 8. Qxc4 {[%clk 0:00:17]}  b5 {[%clk 0:04:45]} 9. Qc3 {[%clk 0:00:17]}  b4 {[%clk 0:04:45]} 10. Qd3 {[%clk 0:00:17]}  Rc8 {[%clk 0:04:45]} 11. dxc5 {[%clk 0:00:17]}  Bxc5 {[%clk 0:04:45]} 12. Be3 {[%clk 0:00:17]}  Bxe3 {[%clk 0:04:45]} 13. Qxe3 {[%clk 0:00:17]}  Qb6 {[%clk 0:04:45]} 14. Qf4 {[%clk 0:00:17]}  O-O {[%clk 0:04:45]} 15. Nbd2 {[%clk 0:00:17]}  Na5 {[%clk 0:04:45]} 16. Ne5 {[%clk 0:00:17]}  Bb5 {[%clk 0:04:45]} 17. Ne4 {[%clk 0:00:17]}  Nxe4 {[%clk 0:04:45]} 18. Bxe4 {[%clk 0:00:17]}  Nc4 {[%clk 0:04:45]} 19. Nd3 {[%clk 0:00:17]}  Nd6 {[%clk 0:04:45]} 20. Rfc1 {[%clk 0:00:17]}  Nxe4 {[%clk 0:04:45]} 21. Qxe4 {[%clk 0:00:17]}  Bxd3 {[%clk 0:04:45]} 22. Qxd3 {[%clk 0:00:17]}  Rfd8 {[%clk 0:04:45]} 23. Rxc8 {[%clk 0:00:17]}  Rxc8 {[%clk 0:04:45]} 24. Rd1 {[%clk 0:00:17]}  g6 {[%clk 0:04:45]} 25. h4 {[%clk 0:00:17]}  h5 {[%clk 0:04:45]} 26. Qd7 {[%clk 0:00:17]}  Qc7 {[%clk 0:04:45]} 27. b3 {[%clk 0:00:17]}  a5 {[%clk 0:04:45]} 28. Qxc7 {[%clk 0:00:17]}  Rxc7 {[%clk 0:04:45]} 29. Rd8+ {[%clk 0:00:17]}  Kg7 {[%clk 0:04:45]} 30. Ra8 {[%clk 0:00:17]}  Rc2 {[%clk 0:04:45]} 31. Rxa5 {[%clk 0:00:17]}  Rxe2 {[%clk 0:04:45]} 32. Kg2 {[%clk 0:00:17]}  Kf6 {[%clk 0:04:45]} 33. Kf3 {[%clk 0:00:17]}  Rc2 {[%clk 0:04:45]} 34. Ke3 {[%clk 0:00:17]}  e5 {[%clk 0:04:45]} 35. Ra4 {[%clk 0:00:17]}  Kf5 {[%clk 0:04:45]} 36. f3 {[%clk 0:00:17]}  Rc3+ {[%clk 0:04:45]} 37. Ke2 {[%clk 0:00:17]}  Rc2+ {[%clk 0:04:45]} 38. Kd3 {[%clk 0:00:17]}  Rc3+ {[%clk 0:04:45]} 39. Ke2 {[%clk 0:00:17]}  Rc2+ {[%clk 0:04:45]} 40. Ke3 {[%clk 0:00:17]}  Rc3+ {[%clk 0:04:45]} 1/2-1/2


[Site "http://www.Chess.com"]